bitfinex-derivatives/quotes_ETHF0:USTF0_20251009
["timestamp","ask_amount","ask_price","bid_price","bid_amount"]
[1760002567623,1.27879647,4351.9,4351.8,1.28816134]
[1760002567922,1.27879647,4351.9,4351.8,0.91236134]
[1760002568118,1.27879647,4351.9,4351.8,0.00216134]
[1760002568519,0.7297,4351.4,4351.3,0.5622]
[1760002568713,1.68957,4351.4,4351.3,0.5622]
[1760002568920,1.1433,4351.1,4351.0,1.5066]
[1760002569221,1.1433,4351.1,4350.7,0.5622]
[1760002569222,0.41362,4351.0,4350.7,0.5622]
[1760002569525,0.3699,4351.0,4350.9,1.286]
[1760002569816,0.3699,4351.0,4350.9,0.5622]
[1760002569817,1.276,4351.0,4350.9,0.5622]
[1760002570024,1.276,4350.8,4350.7,0.91265102]
[1760002570327,0.23,4351.4,4351.0,0.9444]
[1760002570328,0.41361,4351.1,4351.0,0.9444]
[1760002570622,0.41358,4351.4,4351.2,1.286]
[1760002570822,0.41358,4351.4,4351.3,0.9102]
[1760002571023,0.78348,4351.4,4351.3,1.286]
[1760002571418,1.14328,4351.4,4351.3,1.286]
[1760002571620,1.68958,4351.4,4351.3,1.286]
[1760002572020,0.23,4351.7,4351.0,0.5622]
[1760002572021,1.276,4351.1,4351.0,0.5622]
[1760002572222,0.7297,4351.1,4351.0,1.5066]
[1760002572416,0.3699,4351.1,4351.0,1.5066]
[1760002572813,1.276,4351.1,4351.0,1.286]
[1760002573721,0.3699,4351.1,4351.0,1.5066]
[1760002573917,0.23,4351.7,4351.6,0.938]
[1760002573918,0.41354,4351.7,4351.6,0.938]
[1760002574122,1.37324,4351.7,4351.6,1.286]
[1760002574323,4.86619889,4351.7,4351.6,1.286]
[1760002574826,0.78349,4351.2,4351.1,1.286]
[1760002575029,0.3699,4351.2,4351.1,1.286]
[1760002577020,0.41358,4351.3,4351.1,1.286]
[1760002577323,0.78344,4351.7,4351.6,1.286]
[1760002577718,4.14457481,4351.7,4351.6,1.286]
[1760002578118,4.69087481,4351.7,4351.6,0.5622]
[1760002578524,4.69087481,4351.7,4351.6,0.9102]
[1760002578729,4.69087481,4351.7,4351.6,1.286]
[1760002579230,4.69087481,4351.7,4351.6,0.9102]
[1760002580122,4.69087481,4351.7,4351.6,1.286]
[1760002581624,4.69087481,4351.7,4351.6,0.9102]
[1760002581823,1.0339,4351.6,4351.3,0.5622]
[1760002582029,1.68957,4351.4,4351.3,0.5622]
[1760002582229,1.68957,4351.4,4351.3,0.9102]
[1760002582428,0.41363,4350.8,4350.7,0.00245102]
[1760002582735,1.14333,4350.8,4350.7,0.35045102]
[1760002582928,1.14333,4350.8,4350.7,0.72625102]
[1760002583123,1.68963,4350.8,4350.7,0.00245102]
[1760002583333,4.73792991,4350.8,4350.7,0.00245102]
[1760002585732,4.73792991,4350.8,4350.7,0.35045102]
[1760002585928,4.73792991,4350.8,4350.7,0.00245102]
[1760002587732,9.73792991,4350.8,4350.7,0.00245102]
[1760002588339,1.69873,4349.7,4349.6,0.5239]
[1760002588634,1.69873,4349.7,4349.6,0.9027]
[1760002589028,0.7209,4349.7,4349.6,1.263]
[1760002589228,0.23,4349.8,4349.7,1.67673]
[1760002589424,1.69869,4350.2,4350.1,0.3788]
[1760002589630,0.41367,4350.4,4350.1,1.263]
[1760002589837,0.64368,4350.3,4350.2,1.263]
[1760002590334,1.36458,4350.3,4350.2,1.263]
[1760002590930,0.3688,4350.3,4350.2,1.263]
[1760002591131,1.03398,4351.3,4350.9,1.263]
[1760002591132,1.285,4351.0,4350.9,1.263]
[1760002591433,4.45934024,4351.0,4350.9,1.263]
[1760002591636,3.66524024,4351.0,4350.9,1.263]
[1760002591832,4.22934024,4351.0,4350.9,1.263]
[1760002592035,1.69865,4350.6,4350.5,0.5239]
[1760002592226,0.78249,4350.2,4350.1,1.263]
[1760002592435,0.41369,4350.2,4350.1,1.263]
[1760002592935,0.78249,4350.2,4350.1,1.263]
[1760002593139,1.69869,4350.2,4350.1,1.263]
[1760002593530,0.78249,4350.2,4350.1,1.263]
[1760002593733,0.3688,4350.2,4350.1,1.263]
[1760002595335,0.41368,4350.4,4350.3,0.7391]
[1760002595544,0.41368,4350.4,4350.3,1.263]
[1760002596337,1.13458,4350.4,4350.3,1.263]
[1760002596932,1.69868,4350.4,4350.3,1.263]
[1760002598331,1.1346,4350.1,4350.0,1.1102]
[1760002598733,1.6987,4350.1,4350.0,1.1102]
[1760002598938,1.6987,4350.1,4350.0,1.4705]
[1760002599343,1.6987,4350.1,4350.0,0.9027]
[1760002600729,1.1346,4350.1,4349.5,0.2075]
[1760002600935,1.69873,4349.7,4349.1,0.93769]
[1760002601141,1.69873,4349.7,4349.1,0.5239]
[1760002601334,4.66290037,4349.7,4349.1,0.5239]
[1760002601535,2.96417037,4349.7,4349.6,1.26595548]
[1760002601731,0.5641,4350.7,4350.3,0.41368]
[1760002601943,0.23,4350.8,4350.7,0.5239]
[1760002602236,0.23,4350.8,4350.7,1.263]
[1760002602642,0.4136,4351.1,4350.7,1.263]
[1760002602835,0.41356,4351.5,4351.4,0.7391]
[1760002603139,1.01236,4351.5,4351.4,0.7391]
[1760002603343,3.97703959,4351.5,4351.4,1.263]
[1760002605344,3.56347959,4351.5,4351.4,1.263]
[1760002606434,2.96467959,4351.5,4351.4,1.263]
[1760002606641,0.00279647,4351.9,4351.8,1.2431]
[1760002607736,0.00279647,4351.9,4351.8,6.2431]
[1760002608942,0.41343,4353.0,4352.5,0.41346]
[1760002609145,0.78623,4353.0,4352.9,1.2431]
[1760002609340,0.2124,4353.5,4352.5,0.2035]
[1760002609341,0.7551,4354.0,4353.2,0.553]
[1760002609644,0.7155,4353.1,4353.0,0.8905]
[1760002609843,0.4135,4352.2,4352.0,0.2035]
[1760002610042,0.78905935,4352.2,4352.1,0.6901]
[1760002610544,1.13175935,4352.2,4352.1,1.2431]
[1760002610741,1.67445935,4352.2,4352.1,1.2431]
[1760002610941,0.71825935,4352.2,4352.1,1.2431]
[1760002611446,0.37555935,4352.2,4352.1,1.2431]
[1760002612444,1.67171,4352.1,4352.0,0.00224704]
[1760002612635,1.90171,4352.1,4352.0,0.00224704]
[1760002612834,4.93005678,4352.1,4352.0,0.00224704]
[1760002613243,0.00275935,4352.2,4352.0,1.44884704]
[1760002613440,0.5427,4352.1,4352.0,0.00224704]
[1760002613645,0.7155,4352.1,4352.0,0.89274704]
[1760002614045,0.00275935,4352.2,4352.1,1.65661]
[1760002614346,0.00275935,4352.2,4352.1,1.2431]
[1760002614648,0.37555935,4352.2,4352.1,1.2431]
[1760002618045,1.26095935,4352.2,4352.1,0.3375]
[1760002618944,1.26095935,4352.2,4352.1,0.884]
[1760002619145,1.67445935,4352.2,4352.1,0.884]
[1760002619346,1.26095935,4352.2,4352.1,1.2508]
[1760002619541,0.71825935,4352.2,4352.1,1.66431]
[1760002620253,0.78905935,4352.2,4352.1,1.66431]
[1760002620854,0.37555935,4352.2,4352.1,1.66431]
[1760002621156,0.78905935,4352.2,4352.1,1.66431]
[1760002621558,0.37555935,4352.2,4352.1,1.66431]
[1760002622857,0.00275935,4352.2,4352.1,1.66431]
[1760002623048,0.76215935,4352.2,4352.1,1.66431]
[1760002623448,0.41625935,4352.2,4352.1,1.66431]
[1760002624257,0.00275935,4352.2,4352.1,1.66431]
[1760002624557,0.76215935,4352.2,4352.1,1.66431]
[1760002624754,0.34865935,4352.2,4352.1,1.66431]
[1760002625756,0.00275935,4352.2,4352.1,1.66431]
[1760002626254,1.22845935,4352.2,4352.1,0.9053]
[1760002626446,1.63921,4352.1,4352.0,0.00224704]
[1760002626852,4.63993027,4352.1,4352.0,0.00224704]
[1760002628656,0.7003,4351.1,4351.0,1.1088]
[1760002628860,1.2257,4351.1,4351.0,1.1088]
[1760002629559,1.2257,4351.1,4351.0,1.4756]
[1760002629762,1.2257,4351.1,4351.0,1.47721188]
[1760002632160,1.6393,4351.1,4351.0,1.47721188]
[1760002633955,0.7003,4350.5,4350.3,1.64555071]
[1760002634261,1.2257,4350.2,4350.1,0.9053]
[1760002634463,1.2257,4350.2,4350.1,42.0721]
[1760002634762,1.63935,4350.6,4350.5,0.3588]
[1760002634959,1.63935,4350.6,4350.5,0.90723542]
[1760002635155,3.75148685,4350.6,4350.5,1.68769542]
[1760002635360,0.23,4351.3,4351.0,0.41361]
[1760002635551,0.7003,4351.3,4351.2,1.2721]
[1760002635758,1.2257,4351.3,4351.2,1.2721]
[1760002635953,4.2485122,4351.3,4351.2,1.2721]
[1760002636362,0.7003,4351.3,4351.2,1.68569]
[1760002636553,0.5254,4351.7,4351.6,0.9053]
[1760002636554,1.4557,4351.7,4351.6,0.9053]
[1760002636861,0.7595,4351.2,4351.1,1.6857]
[1760002637060,1.1139,4351.2,4351.1,1.2721]
[1760002637257,1.6393,4351.2,4351.1,1.2721]
[1760002637563,1.11389,4351.2,4351.1,1.2721]
[1760002637764,1.11389,4351.2,4350.7,1.2721]
[1760002637765,1.29343,4350.8,4350.7,1.2721]
[1760002637970,0.3459,4350.8,4350.7,1.68574]
[1760002638269,0.7554,4351.2,4350.7,1.68574]
[1760002638564,0.3459,4350.9,4350.8,0.5465]
[1760002638764,0.3459,4350.9,4350.8,1.2721]
[1760002639560,1.2257,4350.9,4350.8,1.2721]
[1760002639760,0.7003,4350.9,4350.8,1.68573]
[1760002639977,0.3459,4350.9,4350.8,1.68573]
[1760002640268,0.3459,4351.6,4351.5,1.88826]
[1760002640465,0.3459,4351.8,4351.5,0.7491]
[1760002640670,3.75187884,4352.1,4352.0,1.4747]
[1760002640966,0.3459,4352.1,4352.0,1.88822]
[1760002641164,0.00275935,4352.2,4352.0,1.34172]
[1760002641370,0.00275935,4352.2,4352.1,1.2721]
[1760002642967,0.76215935,4352.2,4352.1,1.2721]
[1760002643167,0.3544,4351.8,4351.7,0.3588]
[1760002643374,0.7003,4351.8,4351.7,1.2721]
[1760002643572,0.3459,4351.8,4351.7,1.2721]
[1760002643765,0.93891,4352.1,4351.7,41.3465]
[1760002643970,1.28481,4352.1,4352.0,1.4747]
[1760002644367,0.75941,4352.1,4352.0,1.4747]
[1760002644666,0.3459,4352.1,4352.0,1.4747]
[1760002645264,0.7003,4352.1,4352.0,1.4747]
[1760002645865,0.3459,4352.1,4352.0,1.4747]
[1760002646974,1.2257,4352.1,4352.0,1.2721]
[1760002647368,1.2257,4352.1,4352.0,1.4747]
[1760002647577,0.7003,4352.1,4352.0,1.4747]
[1760002648373,1.11381,4352.1,4352.0,1.4747]
[1760002649682,1.63821,4352.1,4352.0,1.4747]
[1760002651282,1.11381,4352.1,4352.0,1.4747]
[1760002651786,1.63821,4352.1,4352.0,1.4747]
[1760002654090,0.00275935,4352.2,4352.1,1.61601]
[1760002654479,0.41625935,4352.2,4352.1,1.61601]
[1760002654679,0.00275935,4352.2,4352.1,1.61601]
[1760002657894,0.00275935,4352.2,4352.1,1.84601]
[1760002658491,0.41625935,4352.2,4352.1,1.84601]
[1760002658901,1.62965935,4352.2,4352.1,0.8488]
[1760002660095,1.62965935,4352.2,4352.1,1.2025]
[1760002661195,1.62965935,4352.2,4351.7,41.44354]
[1760002661196,0.41353,4351.8,4351.7,41.5376]
[1760002661495,0.41353,4351.8,4351.7,41.95114]
[1760002662696,0.41625935,4352.2,4352.1,0.6949]
[1760002662897,0.41625935,4352.2,4352.1,1.2025]
[1760002663095,0.77245935,4352.2,4352.1,1.2025]
[1760002664599,0.77245935,4352.2,4352.1,1.84601]
[1760002664600,0.00275935,4352.2,4352.1,1.84601]
[1760002666695,0.00275935,4352.2,4352.1,6.84601]
[1760002667992,0.41625935,4352.2,4352.1,6.84601]
[1760002670700,0.41625935,4352.2,4352.1,1.4325]
[1760002670896,0.41625935,4352.2,4352.1,1.84601]
[1760002672296,0.41625935,4352.2,4352.1,1.4325]
[1760002672495,0.41625935,4352.2,4352.1,1.84601]
[1760002672704,0.41625935,4352.2,4352.1,1.4325]
[1760002673499,1.64055935,4352.2,4352.1,0.5076]
[1760002673700,1.10643,4351.8,4351.7,1.2187]
[1760002673900,1.10643,4351.8,4351.7,1.4487]
[1760002674717,0.41353,4351.8,4351.7,1.86224]
[1760002675401,0.00275935,4352.2,4351.7,0.7407]
[1760002675605,0.77505935,4352.2,4352.1,1.2187]
[1760002675804,0.41625935,4352.2,4352.1,1.2187]
[1760002676211,0.41625935,4352.2,4352.1,1.63221]
[1760002676502,0.00275935,4352.2,4352.1,1.63221]
[1760002677309,0.41625935,4352.2,4352.1,1.63221]
[1760002677906,0.41625935,4352.2,4352.1,1.2187]
[1760002678609,1.12795935,4352.2,4352.1,1.2209]
[1760002679904,0.41625935,4352.2,4352.1,1.2209]
[1760002680408,0.00275935,4352.2,4352.1,1.2209]
[1760002680605,0.41625935,4352.2,4352.1,1.2209]
[1760002681108,0.74245935,4352.2,4352.1,1.2209]
[1760002681404,1.61605935,4352.2,4352.1,0.8709]
[1760002682401,1.09262,4351.9,4351.8,1.0543]
[1760002682606,1.61332,4351.9,4351.8,1.4043]
[1760002683011,1.09262,4351.9,4351.8,1.4043]
[1760002683409,0.41355,4351.6,4351.5,1.0269]
[1760002683619,1.61335,4351.6,4351.5,1.3837]
[1760002683808,1.09265,4351.6,4351.5,1.3837]
[1760002684512,0.41355,4351.6,4351.5,1.79726]
[1760002684711,0.41625935,4352.2,4351.9,0.41352]
[1760002685014,0.41625935,4352.2,4352.1,1.1743]
[1760002685416,0.00275935,4352.2,4352.1,1.58781]
[1760002686708,0.41339,4353.3,4353.2,0.4971]
[1760002687010,0.41338,4353.4,4353.3,0.8243]
[1760002687213,2.949683,4353.9,4353.3,0.8243]
[1760002687214,0.41336,4353.7,4353.6,0.8471]
[1760002687410,0.41336,4353.7,4353.6,1.1743]
[1760002687605,0.41334,4353.9,4353.7,0.4971]
[1760002687811,0.3279352,4353.9,4353.8,1.1743]
[1760002689012,1.0941752,4353.9,4353.8,1.1743]
[1760002689418,0.7412752,4353.9,4353.8,1.1743]
[1760002689817,0.7412752,4353.9,4353.8,0.8243]
[1760002690110,1.0941752,4353.9,4353.8,0.8243]
[1760002690419,1.0941752,4353.9,4353.8,1.1743]
[1760002691207,0.4150752,4353.9,4353.8,1.1743]
[1760002692708,0.0017352,4353.9,4353.8,1.4043]
[1760002695310,0.41331,4354.2,4354.1,1.58761]
[1760002695518,0.3262,4354.6,4354.5,0.8866]
[1760002696013,0.41327,4354.6,4354.5,1.3837]
[1760002696235,0.41327,4354.6,4354.5,0.4971]
[1760002696236,1.09477984,4354.6,4354.5,0.4971]
[1760002696515,1.61547984,4354.6,4354.0,0.2094]
[1760002696820,1.61547984,4354.6,4353.7,0.00184283]
[1760002696821,1.09244,4353.8,4353.7,0.00184283]
[1760002697214,1.09244,4353.8,4353.7,0.82614283]
[1760002697419,1.09244,4353.8,4353.7,1.17614283]
[1760002697616,0.41334,4353.8,4353.7,1.58949283]
[1760002698126,0.41334,4353.8,4353.7,1.17614283]
[1760002698420,0.73954,4353.8,4353.7,1.17614283]
[1760002698819,0.73954,4353.8,4353.7,1.58949283]
[1760002699021,0.41334,4353.8,4353.7,1.58949283]
[1760002701321,0.3262,4354.4,4354.3,0.6772]
[1760002701525,0.73949,4354.4,4354.3,1.1743]
[1760002702122,0.6791,4353.8,4353.7,0.00184283]
[1760002702425,0.6791,4353.8,4351.7,1.0]
[1760002702426,0.8469,4351.9,4351.8,0.3272]
[1760002702718,1.1998,4351.9,4351.8,0.3272]
[1760002703023,1.61333,4351.8,4351.7,1.0]
[1760002703323,1.61333,4351.8,4350.3,1.6375]
[1760002703324,0.7398,4351.2,4351.1,0.6772]
[1760002703624,0.00268633,4351.2,4351.1,0.67904633]
[1760002703815,0.84958633,4351.2,4351.1,0.67904633]
[1760002704216,0.84958633,4351.2,4351.1,1.17614633]
[1760002705619,0.00268633,4351.2,4351.1,1.17614633]
[1760002710029,0.00268633,4351.2,4351.1,0.00184633]
[1760002710030,1.20968633,4351.2,4351.1,0.00184633]
[1760002712730,1.20968633,4351.2,4351.1,0.35634633]
[1760002712934,1.20968633,4351.2,4351.1,1.24134633]
[1760002713629,1.20968633,4351.2,4351.1,0.00184633]
[1760002713828,0.41368,4350.3,4350.2,0.8883]
[1760002714028,1.64938,4350.3,4350.2,1.2395]
[1760002714423,1.64938,4350.3,4350.2,0.7057]
[1760002714827,1.64938,4350.3,4350.2,0.70775844]
[1760002716635,1.64938,4350.3,4350.2,0.35655844]
[1760002718031,1.64938,4350.3,4350.2,0.00205844]
[1760002720439,1.64938,4350.3,4350.2,0.35655844]
[1760002720827,1.2357,4350.3,4350.2,0.35655844]
[1760002721027,1.24543,4351.0,4350.2,0.70775844]
[1760002721333,3.88984179,4350.9,4350.8,1.2395]
[1760002721537,4.65966179,4350.9,4350.8,0.3545]
[1760002722237,1.64935,4350.6,4350.5,0.3545]
[1760002722432,0.3562,4350.7,4350.6,0.8883]
[1760002722631,1.2357,4350.7,4350.6,1.2395]
[1760002722832,1.64934,4350.7,4350.6,1.2395]
[1760002723636,0.76854,4350.7,4350.6,1.2395]
[1760002724438,1.60814,4350.7,4350.6,0.7057]
[1760002724842,0.2114,4351.0,4350.2,1.15245844]
[1760002724843,1.59898,4350.3,4350.2,1.15245844]
[1760002725032,1.1853,4350.3,4350.2,1.15245844]
[1760002725237,1.26127,4350.5,4350.4,1.1504]
[1760002726240,1.59897,4350.5,4350.4,1.1504]
[1760002727033,1.59898,4350.3,4350.2,0.00205844]
[1760002727233,1.59898,4350.3,4349.5,1.08055]
[1760002727234,0.75945,4349.6,4349.5,1.08055]
[1760002727542,1.26135,4349.6,4349.5,1.56415]
[1760002728041,1.26135,4349.6,4349.5,1.1504]
[1760002728243,1.26135,4349.6,4349.5,1.15284168]
[1760002728633,1.59905,4349.6,4349.5,1.15284168]
[1760002729635,0.75954,4348.7,4348.6,1.1504]
[1760002729840,1.26144,4348.7,4348.6,1.1504]
[1760002730045,0.8476,4348.7,4348.6,1.1504]
[1760002730343,0.3457,4348.7,4348.6,1.1504]
[1760002730535,1.26142,4348.9,4348.8,0.6668]
[1760002730735,1.26142,4348.9,4348.8,1.15201965]
[1760002731040,1.59912,4348.9,4348.8,1.15201965]
[1760002731643,1.1853,4348.9,4348.8,1.15201965]
[1760002732336,0.8476,4348.9,4348.8,1.15201965]
[1760002732537,0.3457,4348.9,4348.8,1.15201965]
[1760002732739,0.8476,4348.9,4348.8,1.15201965]
[1760002733038,1.1853,4348.9,4348.8,1.15201965]
[1760002733341,9.35838922,4348.9,4348.8,0.00161965]
[1760002733835,1.59918,4348.2,4348.1,1.1504]
[1760002734041,1.59918,4348.2,4348.1,0.3298]
[1760002734639,1.59918,4348.2,4348.1,0.6668]
[1760002734843,1.59918,4348.2,4348.1,1.15329952]
[1760002735342,1.03451,4349.1,4348.4,0.6668]
[1760002735343,0.23,4348.6,4348.4,0.6668]
[1760002735543,0.8476,4348.5,4348.4,1.08066]
[1760002735843,1.1853,4348.5,4348.4,1.08066]
[1760002736437,1.3858,4348.5,4348.4,1.08066]
[1760002736738,0.41383,4348.7,4348.5,0.41385]
[1760002736944,1.59913,4348.7,4348.6,1.1504]
[1760002737442,4.53666383,4348.7,4348.6,1.1504]
[1760002738741,1.59913,4348.7,4348.6,1.1504]
[1760002739045,0.5019,4348.7,4348.1,0.50939952]
[1760002739239,0.8293,4348.2,4348.1,1.18659952]
[1760002739438,0.8293,4348.2,4348.1,1.60048952]
[1760002739936,1.1745,4348.2,4348.1,1.60048952]
[1760002740445,0.8293,4348.2,4348.1,1.60048952]
[1760002740634,1.1745,4348.2,4348.1,1.60048952]
[1760002740838,1.58838,4348.2,4348.1,0.00289952]
[1760002741040,4.61896409,4348.2,4348.1,0.00289952]
[1760002741441,0.6259,4348.0,4347.9,0.02299987]
[1760002741745,0.6259,4348.0,4346.9,1.5977]
[1760002741746,1.1745,4347.0,4346.9,1.5977]
[1760002741942,0.8293,4347.0,4346.9,1.5977]
[1760002742150,0.3324,4347.0,4346.9,1.5977]
[1760002742643,0.33502562,4347.0,4346.9,1.59988755]
[1760002742844,0.83192562,4347.0,4346.9,1.59988755]
[1760002743845,1.05672562,4347.0,4346.1,0.5065]
[1760002744042,1.1745,4346.2,4346.1,1.1837]
[1760002744949,1.1745,4346.2,4346.1,1.186552]
[1760002745247,1.1745,4346.2,4346.1,0.680052]
[1760002745452,4.42591002,4346.2,4346.1,0.002852]
[1760002745936,4.42591002,4346.2,4345.4,0.3314]
[1760002745937,1.1745,4345.5,4345.4,0.3314]
[1760002746844,1.1745,4345.5,4345.4,0.33342621]
[1760002746845,1.3865,4345.5,4345.4,0.33342621]
[1760002747151,1.58859,4346.1,4346.0,0.6772]
[1760002747342,1.1745,4345.8,4345.7,0.3314]
[1760002747545,0.3324,4345.5,4345.4,0.74756621]
[1760002747852,1.3865,4345.5,4345.4,0.33342621]
[1760002748544,1.6175,4345.5,4345.4,0.33342621]
[1760002748748,1.6175,4345.5,4345.4,1.18572621]
[1760002748946,4.59355474,4345.5,4345.4,0.00202621]
[1760002749849,4.59355474,4345.5,4345.4,0.33342621]
[1760002750047,4.38155474,4345.5,4345.4,1.18572621]
[1760002750850,1.3865,4346.0,4345.9,0.3314]
[1760002751050,1.6175,4346.0,4345.9,0.3314]
[1760002751354,1.4055,4346.0,4345.9,1.1837]
[1760002751643,1.4055,4346.0,4345.9,0.6772]
[1760002751843,4.43095171,4346.0,4345.9,0.3314]
[1760002752043,0.4969,4346.4,4346.3,0.41406]
[1760002752249,1.0003,4346.4,4346.3,0.6772]
[1760002752439,4.02651657,4346.4,4346.3,1.1837]
[1760002752641,0.3324,4346.4,4346.3,1.1837]
[1760002752848,0.231,4346.4,4345.8,0.5065]
[1760002753052,1.1745,4346.2,4346.1,0.3314]
[1760002753351,1.1745,4346.2,4346.1,1.1837]
[1760002753647,0.3324,4346.2,4346.1,1.1837]
[1760002753845,0.8293,4346.5,4346.4,1.1837]
[1760002754149,1.6175,4346.5,4346.4,0.6772]
[1760002754345,1.6175,4346.5,4346.4,0.3314]
[1760002754744,1.6175,4346.5,4346.1,41.21407]
[1760002754945,0.4969,4346.4,4346.1,41.21407]
[1760002755144,0.4969,4346.1,4346.0,0.41409]
[1760002755347,1.1745,4346.1,4345.7,0.41411]
[1760002755645,1.1745,4345.8,4345.7,1.09131]
[1760002755849,1.1745,4345.8,4345.7,1.59781]
[1760002756349,0.8293,4345.8,4345.7,1.59781]
[1760002756852,0.3324,4346.1,4346.0,1.59779]
[1760002757349,0.8293,4346.1,4346.0,1.59779]
[1760002758052,0.3324,4346.1,4346.0,1.59779]
[1760002758945,1.24336,4346.3,4346.2,1.59777]
[1760002759448,0.3324,4346.5,4346.4,0.41404]
[1760002759651,0.8293,4346.5,4346.4,1.59774]
[1760002759844,1.80054,4346.5,4346.4,0.6772]
[1760002760046,1.58858,4346.1,4346.0,1.25199]
[1760002760247,1.58858,4346.1,4346.0,1.59779]
[1760002761055,1.1745,4346.1,4346.0,1.59779]
[1760002761250,0.3324,4346.1,4346.0,1.59779]
[1760002761450,0.8293,4346.4,4346.3,1.1837]
[1760002761655,0.8293,4346.4,4346.3,1.59776]
[1760002762053,1.24335,4346.4,4346.3,1.59776]
[1760002762850,0.3324,4346.7,4346.6,0.6772]
[1760002763047,0.3324,4346.7,4346.6,1.59773]
[1760002763255,0.74642,4346.7,4346.6,1.59773]
[1760002763558,0.8293,4346.7,4346.6,1.59773]
[1760002763960,1.58852,4346.7,4346.6,1.1837]
[1760002764160,1.80054,4346.5,4346.4,0.3314]
[1760002764563,1.3865,4346.5,4346.4,1.59775]
[1760002764759,1.1745,4346.5,4346.4,1.59775]
[1760002765061,0.414,4346.9,4346.8,0.41401]
[1760002765263,1.0916,4346.9,4346.8,1.59771]
[1760002765461,4.03873191,4346.9,4346.8,1.59771]
[1760002765859,4.53563191,4346.9,4346.8,1.59771]
[1760002766856,4.12163191,4346.9,4346.8,1.1837]
[1760002767056,4.12163191,4346.9,4346.8,1.59771]
[1760002767057,1.1745,4346.9,4346.8,1.59771]
[1760002767259,0.00262562,4347.0,4346.5,1.2467]
[1760002767260,0.41661562,4347.0,4346.9,1.5977]
[1760002767459,1.24591562,4347.0,4346.9,1.5977]
[1760002768866,1.07102,4346.7,4346.6,0.76373]
[1760002769157,1.55292,4346.7,4346.6,0.76373]
[1760002769357,1.55292,4346.7,4346.6,1.57863]
[1760002769558,0.3382,4346.7,4346.6,1.57863]
[1760002769865,1.23412,4346.7,4346.6,1.57863]
[1760002770064,1.55292,4346.7,4346.6,1.57863]
[1760002770767,0.3382,4346.7,4346.6,1.57863]
[1760002771466,1.23412,4346.7,4346.6,1.57863]
[1760002772763,0.3382,4346.7,4346.6,1.57863]
[1760002773066,0.41401,4346.8,4346.7,1.57862]
[1760002773268,0.75221,4346.8,4346.7,1.57862]
[1760002773460,0.20082562,4347.0,4346.5,0.2055]
[1760002773461,0.00262562,4347.0,4346.9,1.5786]
[1760002774464,0.75481562,4347.0,4346.9,1.5786]
[1760002774766,0.82272562,4347.0,4346.9,1.5786]
[1760002775362,0.00262562,4347.0,4346.9,1.5786]
[1760002776964,0.41661562,4347.0,4346.9,1.5786]
[1760002777162,1.23671562,4347.0,4346.9,1.5786]
[1760002777558,1.55551562,4347.0,4346.9,1.5786]
[1760002780169,1.75371562,4347.0,4346.9,1.5786]
[1760002780872,1.75371562,4347.0,4346.9,0.414]
[1760002781064,1.14152562,4347.0,4346.9,1.5786]
[1760002781264,0.82272562,4347.0,4346.9,1.5786]
[1760002781472,1.14152562,4347.0,4346.9,1.5786]
[1760002781866,1.55551562,4347.0,4346.9,1.5786]
[1760002783675,0.34082562,4347.0,4346.9,1.5786]
[1760002784476,1.23701562,4347.0,4346.9,1.5786]
[1760002784671,0.75481562,4347.0,4346.9,1.5786]
[1760002784869,0.34082562,4347.0,4346.9,1.5786]
[1760002785371,0.82302562,4347.0,4346.9,1.5786]
[1760002785573,0.34082562,4347.0,4346.9,1.5786]
[1760002787676,1.75391562,4347.0,4346.9,1.5786]
[1760002788072,1.75391562,4347.0,4346.9,0.3497]
[1760002788272,1.54862,4346.7,4346.6,0.8223]
[1760002788478,1.54862,4346.7,4346.6,1.23633]
[1760002788778,1.54862,4346.7,4346.6,0.75463]
[1760002789876,1.1346,4346.7,4346.6,1.57273]
[1760002791476,1.1346,4346.7,4346.6,3.21023]
[1760002792973,1.1346,4346.7,4346.6,2.7962]
[1760002793375,1.1346,4346.7,4346.6,1.1587]
[1760002793678,0.414,4346.9,4346.8,1.57271]
[1760002793878,0.8962,4346.9,4346.8,1.57271]
[1760002794178,4.26371848,4346.9,4346.8,1.57271]
[1760002794378,4.59761848,4346.9,4346.8,1.57271]
[1760002796779,0.00262562,4347.0,4346.9,1.5727]
[1760002801287,0.80012562,4347.0,4346.9,1.5727]
[1760002802085,0.6499,4348.0,4347.9,0.6532]
[1760002802392,0.3297,4348.0,4347.9,1.56701]
[1760002802588,0.1881,4348.0,4347.7,0.41392]
[1760002802790,1.1289,4347.8,4347.7,1.56702]
[1760002803186,1.13182231,4347.8,4347.7,1.56702]
[1760002803986,0.1881,4347.5,4347.4,1.64363049]
[1760002804290,0.1881,4347.5,4345.7,4.114494]
[1760002804291,1.73104,4346.5,4346.4,0.3431]
[1760002804585,0.41411,4345.7,4345.6,0.3431]
[1760002804787,1.25213,4345.5,4344.9,2.04589375]
[1760002804986,1.25213,4345.5,4344.9,0.231]
[1760002805192,1.317,4345.5,4344.9,0.231]
[1760002805396,1.317,4345.5,4345.0,0.41418]
[1760002806684,4.34662623,4345.5,4344.7,0.231]
[1760002807284,0.3297,4344.2,4344.1,0.3431]
[1760002807490,0.479,4344.4,4344.3,1.06745]
[1760002807689,1.1289,4344.4,4344.3,0.6532]
[1760002807884,1.1289,4344.4,4344.3,41.4532]
[1760002808495,1.13069605,4344.4,4344.3,41.45587728]
[1760002808691,1.13069605,4344.4,4344.3,0.65587728]
[1760002809989,4.14747272,4344.4,4344.3,0.00267728]
[1760002812796,4.14747272,4344.4,4344.3,0.34577728]
[1760002813000,4.14747272,4344.4,4344.3,0.00267728]
[1760002814199,4.14747272,4344.4,4343.4,0.3431]
[1760002814200,1.317,4343.5,4343.4,0.3431]
[1760002814403,1.317,4343.5,4343.4,0.6532]